bitfinex/quotes_ETHUSD_20250602
["timestamp","ask_amount","ask_price","bid_price","bid_amount"]
[1748843134902,0.38250902,2485.3,2485.2,3.16759261]
[1748843135488,0.76509134,2485.3,2485.2,3.16759261]
[1748843137702,0.38250902,2485.3,2485.2,3.16759261]
[1748843138515,0.76493163,2485.3,2485.2,3.16759261]
[1748843141640,0.76475304,2485.3,2485.2,3.16759261]
[1748843142339,0.76475304,2485.3,2485.2,0.7533]
[1748843142559,0.76475304,2485.3,2485.2,3.16759261]
[1748843143760,0.76475304,2485.3,2485.2,3.72578968]
[1748843143924,0.38250902,2485.3,2485.2,3.72578968]
[1748843144129,0.38250902,2485.3,2485.2,3.16759261]
[1748843145522,0.38250902,2485.3,2485.2,3.19659261]
[1748843145816,0.38250902,2485.3,2485.2,7.65659261]
[1748843151142,0.38250902,2485.3,2485.2,3.19659261]
[1748843152467,0.38250902,2485.3,2485.2,3.74659261]
[1748843154350,0.4987,2486.6,2486.0,0.7681]
[1748843154549,0.4987,2486.6,2486.3,2.41317387]
[1748843154858,0.4987,2486.6,2486.3,2.4131439]
[1748843155167,0.4987,2486.6,2486.0,0.7681]
[1748843155345,8.0,2486.7,2486.4,2.41306236]
[1748843155550,8.0,2486.7,2486.5,2.4130153]
[1748843155868,0.01,2486.9,2486.1,2.4134186]
[1748843156168,0.01,2486.9,2486.8,2.41273926]
[1748843160986,0.01,2486.9,2486.3,0.8054]
[1748843161167,0.01,2486.9,2486.4,2.4130779]
[1748843161476,3.2621653,2486.9,2486.3,2.41315839]
[1748843161638,3.2621653,2486.9,2486.4,2.41312226]
[1748843161837,0.84947107,2486.9,2486.4,2.41312226]
[1748843162053,0.84947107,2486.9,2486.5,2.41301808]
[1748843162252,0.84947107,2486.9,2486.4,2.41308142]
[1748843162850,0.84947107,2486.9,2486.3,2.41319356]
[1748843162851,0.92341318,2486.8,2486.2,2.41331951]
[1748843163063,0.92341318,2486.8,2486.4,2.41306604]
[1748843163578,0.92341318,2486.8,2486.3,2.41321913]
[1748843163777,0.92341318,2486.8,2486.5,2.41295867]
[1748843164693,0.92341318,2486.8,2486.6,2.41292939]
[1748843165368,0.92341318,2486.8,2486.5,2.41298394]
[1748843165962,0.92341318,2486.8,2486.6,2.41293178]
[1748843166162,0.92341318,2486.8,2486.7,2.41283628]
[1748843166448,0.84947107,2486.9,2486.8,2.41273926]
[1748843166757,0.01,2486.9,2486.8,2.41273926]
[1748843170491,0.01,2486.9,2486.8,3.24263926]
[1748843170951,0.01,2486.9,2486.8,3.79263926]
[1748843172448,0.01,2486.9,2486.8,9.07963926]
[1748843174589,0.01,2486.9,2486.8,8.52663926]
[1748843175294,0.01,2486.9,2486.8,3.24263926]
[1748843176101,0.01,2486.9,2486.8,3.79263926]
[1748843180787,0.01,2486.9,2486.8,8.25263926]
[1748843181399,0.01,2486.9,2486.8,13.53463926]
[1748843184513,0.01,2486.9,2486.8,21.53463926]
[1748843184893,0.01,2487.9,2487.8,2.41176943]
[1748843185108,0.01,2487.9,2487.8,3.17476943]
[1748843185836,0.01,2487.9,2487.8,3.72476943]
[1748843187687,0.01,2487.9,2487.8,11.72476943]
[1748843187851,0.01,2488.9,2488.5,2.41109101]
[1748843193535,0.01,2488.9,2488.5,3.19769101]
[1748843195571,0.01,2488.9,2488.8,2.41080038]
[1748843197077,0.01,2488.9,2488.6,2.41099413]
[1748843197461,0.5087,2488.8,2488.5,2.4110634]
[1748843198973,0.5087,2488.8,2488.5,2.41108567]
[1748843199471,0.5087,2488.8,2488.6,2.4109742]
[1748843200871,0.5087,2488.8,2488.3,2.41123322]
[1748843201081,0.5087,2488.7,2488.4,2.41118569]
[1748843201455,0.5087,2488.7,2487.9,3.50760068]
[1748843201456,0.5087,2488.7,2488.5,2.41108815]
[1748843201855,0.5087,2488.7,2488.6,2.41099413]
[1748843203375,0.5087,2488.7,2488.6,2.8932024]
[1748843203951,0.5087,2488.7,2488.1,3.50746904]
[1748843204171,0.5087,2488.7,2488.5,2.41101692]
[1748843205472,0.5087,2488.7,2488.6,2.41099413]
[1748843207289,0.5087,2488.7,2488.1,2.41146904]
[1748843207466,0.5087,2488.7,2488.4,2.41113767]
[1748843207670,0.5087,2488.7,2488.4,2.41110369]
[1748843207872,0.5087,2488.7,2488.5,2.41107119]
[1748843208101,0.5087,2488.7,2488.0,1.096]
[1748843208302,0.5087,2488.7,2488.3,2.41119676]
[1748843209472,0.5087,2488.7,2488.4,2.41118188]
[1748843211599,0.5087,2488.7,2488.5,2.41108729]
[1748843211998,0.5087,2488.7,2488.4,2.41112357]
[1748843212186,0.5087,2488.7,2488.5,2.41105507]
[1748843212387,0.5087,2488.7,2488.3,2.41122208]
[1748843212586,0.5087,2488.7,2488.4,2.41113178]
[1748843212902,0.5087,2488.7,2488.5,2.41108892]
[1748843213205,0.97567,2488.7,2488.5,2.41108892]
[1748843213406,0.97567,2488.7,2488.4,2.41112383]
[1748843213966,0.97567,2488.7,2488.5,2.41107969]
[1748843214478,0.97567,2488.7,2487.9,0.7887]
[1748843214479,0.97567,2488.7,2488.6,2.41099413]
[1748843214681,1.35952222,2488.7,2488.6,2.41099413]
[1748843214977,0.89255222,2488.7,2488.6,2.41099413]
[1748843216888,0.89274299,2488.7,2488.6,2.41099413]
[1748843218394,0.89274299,2488.7,2488.3,2.41119126]
[1748843218652,0.5087,2488.4,2487.4,4.32547738]
[1748843218926,0.5087,2488.0,2487.8,2.4116766]
[1748843219222,3.35196882,2488.0,2487.9,2.41167249]
[1748843219810,0.5087,2488.0,2487.9,2.41167249]
[1748843220236,4.146,2488.3,2487.9,2.41167249]
[1748843220442,0.38399737,2488.2,2488.1,2.4114675]
[1748843220601,0.5087,2488.5,2488.4,2.41118791]
[1748843222611,0.5087,2488.7,2488.6,2.41094524]
[1748843222810,0.89270858,2488.7,2488.6,2.41094524]
[1748843223000,0.89270858,2488.7,2488.5,2.4110432]
[1748843223203,0.38400858,2488.6,2488.5,2.4110432]
[1748843223797,0.5087,2488.7,2488.6,2.41099413]
[1748843224033,0.89260571,2488.7,2488.6,2.41099413]
[1748843226049,0.89260571,2488.7,2488.5,2.41105582]
[1748843226212,0.38390571,2488.6,2488.5,2.41105582]
[1748843228248,0.5087,2488.7,2488.6,2.41099413]
[1748843228447,0.89271572,2488.7,2488.6,2.41099413]
[1748843230049,0.38401572,2488.7,2488.6,2.41099413]
[1748843230418,0.01,2488.9,2488.8,2.41080038]
[1748843230619,0.39416627,2488.9,2488.8,2.41080038]
[1748843232782,0.3941555,2488.9,2488.8,2.41080038]
[1748843233728,0.01,2488.9,2488.8,3.22150038]
[1748843233932,0.01,2488.9,2488.8,3.78473883]
[1748843235142,0.01,2488.9,2488.8,2.97403883]
[1748843235342,0.01,2488.9,2488.8,2.41080038]
[1748843236752,0.01,2488.9,2488.8,3.22740038]
[1748843237657,0.01,2488.9,2488.8,7.36540038]
[1748843238229,0.01,2488.9,2488.8,7.91540038]
[1748843238740,1.0,2489.8,2489.7,3.2021289]
[1748843239847,1.0,2489.8,2489.7,2.4099289]
[1748843248328,1.0,2489.8,2489.7,2.96851332]
[1748843248639,1.0,2489.8,2489.7,3.79331332]
[1748843250354,1.0,2489.8,2489.7,4.34331332]
[1748843250674,1.0,2489.8,2489.7,7.18149929]
[1748843251246,0.01,2489.9,2489.8,2.40983211]
[1748843251449,0.01,2489.9,2489.8,3.61390297]
[1748843251646,0.01,2489.9,2489.8,4.16390297]
[1748843252072,0.01,2489.9,2489.8,12.16390297]
[1748843252227,0.01,2490.9,2490.8,2.40886462]
[1748843256791,0.5387,2490.9,2490.8,2.40886462]
[1748843257135,5.26916541,2490.9,2490.5,2.40909999]
[1748843257337,5.97465406,2490.6,2490.5,2.40909999]
[1748843257573,5.97465406,2490.6,2490.4,2.40918509]
[1748843257941,5.97465406,2490.6,2490.3,2.40931371]
[1748843258164,6.57211947,2490.6,2489.9,2.40973533]
[1748843258371,6.57211947,2490.6,2490.3,2.40926033]
[1748843258548,6.57211947,2490.6,2490.4,2.40921788]
[1748843258752,6.57211947,2490.6,2490.3,2.40927923]
[1748843259141,6.57211947,2490.6,2490.5,2.40915478]
[1748843260480,6.57211947,2490.6,2490.5,2.40915478]
[1748843260838,0.5287,2490.6,2490.5,2.40915478]
[1748843261040,0.01,2490.9,2490.8,2.40886462]
[1748843261245,0.01,2490.9,2490.7,2.40894781]
[1748843261558,0.5287,2490.8,2490.6,2.40903069]
[1748843261794,5.44595406,2490.7,2490.6,2.40903069]
[1748843262508,0.5287,2490.6,2490.3,2.40931373]
[1748843262807,5.44595406,2490.4,2490.3,2.40934827]
[1748843263110,0.5287,2490.3,2490.1,2.40949251]
[1748843263471,0.5287,2490.3,2490.2,2.40944502]
[1748843264480,0.5287,2490.5,2490.0,2.40960034]
[1748843264820,0.5287,2490.5,2490.4,2.40924717]
[1748843268012,5.97465406,2490.7,2490.5,2.40915478]
[1748843268194,10.10365406,2490.7,2490.5,2.40915478]
[1748843268681,18.10365406,2490.7,2490.5,2.40909263]
[1748843269011,5.97465406,2490.7,2490.6,2.40905805]
[1748843269604,0.5387,2490.9,2490.8,2.40886462]
[1748843269816,0.39292644,2490.9,2490.8,2.40886462]
[1748843270014,0.01,2490.9,2490.8,2.40886462]
[1748843271394,0.01,2490.9,2490.8,2.96606682]
[1748843272293,0.01,2490.9,2490.8,2.40886462]
[1748843289851,0.01,2490.9,2490.8,3.20166462]
[1748843292295,0.01,2490.9,2490.8,4.27466462]
[1748843292464,0.01,2490.9,2490.8,8.38866462]
[1748843292850,0.01,2490.9,2490.8,8.93866462]
[1748843293068,0.01,2490.9,2490.8,16.93866462]
[1748843293375,0.01,2490.9,2490.8,3.75166462]
[1748843293578,0.01,2490.9,2490.8,8.94666462]
[1748843294182,0.01,2490.9,2490.8,3.20166462]
[1748843294373,0.01,2490.9,2490.8,8.39666462]
[1748843294904,0.01,2490.9,2490.8,2.40886462]
[1748843298696,2.82471089,2491.2,2491.1,2.40857452]
[1748843298899,3.20858766,2491.2,2491.1,2.40857452]
[1748843299094,0.47941669,2491.6,2491.3,2.40837569]
[1748843299396,1.0,2491.7,2491.1,2.40849995]
[1748843299397,2.83598746,2491.4,2491.1,2.40849995]
[1748843299582,3.36468746,2491.4,2491.1,2.40849995]
[1748843300308,3.36468746,2491.4,2490.6,0.7754]
[1748843300309,2.83598746,2491.2,2491.0,2.40864268]
[1748843302227,2.00869282,2491.7,2491.3,2.40838002]
[1748843302371,2.83598746,2491.5,2491.0,0.7686]
[1748843302570,0.38400084,2491.4,2491.2,2.40842242]
[1748843302776,8.0,2491.6,2491.2,2.40842242]
[1748843302974,0.38399286,2491.5,2491.2,2.40842242]
[1748843303307,0.38399286,2491.4,2491.2,2.40842242]
[1748843303604,8.0,2491.6,2491.2,2.40842242]
[1748843303808,0.38397111,2491.5,2491.2,2.40842242]
[1748843304005,0.38397111,2491.4,2491.2,2.40842242]
[1748843304175,8.0,2491.6,2491.1,2.40853508]
[1748843304373,0.38397177,2491.5,2491.1,2.40853508]
[1748843304610,10.28521636,2491.6,2491.1,2.40853508]
[1748843304829,0.38397107,2491.5,2491.1,2.40853508]
[1748843304975,0.38397107,2491.4,2491.1,2.40853508]
[1748843305176,10.28521636,2491.6,2491.1,2.40853508]
[1748843305404,0.38397331,2491.5,2491.1,2.40853508]
[1748843305610,0.38397331,2491.4,2491.1,2.40853508]
[1748843305811,10.28521636,2491.6,2491.1,2.40853508]
[1748843305980,0.38398608,2491.5,2491.1,2.40853508]
[1748843306186,0.38398608,2491.4,2491.1,2.40853508]
[1748843306408,10.96427071,2491.7,2491.1,0.55857878]
[1748843306409,8.5287,2491.7,2491.1,0.55857878]
[1748843306733,0.01,2491.9,2491.2,0.7879]
[1748843306913,0.38410469,2491.8,2491.3,2.83598746]
[1748843307078,0.01,2491.9,2491.7,2.40799454]
[1748843307273,0.01,2491.9,2491.8,2.4078979]
[1748843308504,0.01,2491.9,2491.8,2.97128714]
[1748843308685,0.01,2491.9,2491.8,2.4078979]
[1748843314697,0.01,2491.9,2491.8,3.1807979]
[1748843315821,0.01,2491.9,2491.8,2.4078979]
[1748843317688,0.01,2491.9,2491.7,2.40794998]
[1748843317887,0.01,2491.9,2491.8,2.4078979]
[1748843318638,0.5287,2491.8,2491.4,2.40822253]
[1748843318941,2.83598746,2491.6,2491.4,2.40822253]
[1748843319152,2.83598746,2491.6,2490.9,3.17546462]
[1748843319153,3.36468746,2491.8,2491.5,2.408186]
[1748843319717,3.36468746,2491.8,2491.4,2.40828347]
[1748843319922,3.36468746,2491.8,2491.5,2.40813151]
[1748843320305,3.36468746,2491.8,2491.6,2.40807885]
[1748843320707,3.36468746,2491.8,2491.5,2.40814555]
[1748843320907,0.5287,2491.8,2491.5,2.40818783]
[1748843321107,0.5287,2491.8,2491.6,2.40800957]
[1748843321629,0.5287,2491.8,2491.7,2.40799454]
[1748843321810,0.5287,2491.8,2491.6,2.40806779]
[1748843322507,0.5287,2491.8,2491.5,2.40814275]
[1748843322842,4.35552775,2491.8,2491.4,2.40827407]
[1748843324109,4.35552775,2491.8,2491.3,2.40833598]
[1748843324652,7.14670586,2491.8,2491.3,2.40833598]
[1748843324812,6.76342841,2491.8,2491.3,2.40833598]
[1748843325949,4.35552775,2491.8,2491.3,2.40833598]
[1748843326145,4.35552775,2491.8,2491.2,2.40847032]
[1748843326146,4.35552775,2491.8,2491.4,2.40827339]
[1748843327846,4.35552775,2491.8,2491.3,2.40833368]
[1748843328927,6.76342985,2491.8,2491.3,2.40833368]
[1748843329122,0.383533,2491.7,2491.3,2.40833368]
[1748843329328,4.35552775,2491.8,2491.2,2.40847032]
[1748843329528,0.38354284,2491.7,2491.3,2.40831396]
[1748843329851,4.35552775,2491.8,2491.3,2.40831396]
[1748843330047,0.38356521,2491.7,2491.3,2.40831396]
[1748843330252,6.76342762,2491.8,2491.3,2.40831396]
[1748843330424,0.38356433,2491.7,2491.3,2.40831396]
[1748843330631,6.76342762,2491.8,2491.3,2.40831396]
[1748843330862,0.38360302,2491.7,2491.3,2.40831396]
[1748843331066,6.76342762,2491.8,2491.3,2.40831396]
[1748843331254,0.38360315,2491.7,2491.3,2.40831396]
[1748843331459,6.76342762,2491.8,2491.3,2.40831396]
[1748843331629,1.09551461,2491.7,2491.3,2.40831396]
[1748843331952,0.71186394,2491.7,2491.3,2.40831396]
[1748843333497,4.35552775,2491.8,2491.0,2.40867121]
[1748843333642,0.38370718,2491.7,2491.4,2.40822539]
[1748843333974,0.5287,2491.8,2491.4,2.40822539]
[1748843334136,0.38370308,2491.7,2491.4,2.40822539]
[1748843334469,0.5287,2491.8,2491.3,2.40833217]
[1748843334681,0.38374375,2491.7,2491.3,2.40833217]
[1748843334881,2.93662552,2491.8,2491.3,2.40833217]
[1748843335032,0.38375255,2491.7,2491.3,2.40833217]
[1748843335235,2.93662552,2491.8,2491.3,2.40833217]
[1748843335440,0.3837528,2491.7,2491.3,2.40833217]
[1748843335676,5.77261298,2491.8,2491.3,2.40833217]
[1748843335876,0.38379011,2491.7,2491.3,2.40833217]
[1748843336038,7.80354686,2491.8,2491.3,2.40833217]
[1748843336238,0.38379029,2491.7,2491.3,2.40833217]
[1748843336436,7.80354686,2491.8,2491.2,2.40842844]
[1748843336640,0.38383118,2491.7,2491.2,2.40842844]
[1748843336869,7.80354686,2491.8,2491.2,2.40842844]
[1748843337100,0.38383127,2491.7,2491.2,2.40842844]
[1748843337397,7.80354686,2491.8,2491.2,2.40842844]
[1748843337596,5.24412757,2491.6,2491.1,2.40852244]
[1748843339107,2.83598746,2491.4,2490.9,0.7667]
[1748843339258,5.24433163,2491.4,2490.7,3.22258203]
[1748843339465,5.24433163,2491.4,2490.9,2.40875698]
[1748843339941,2.83598746,2491.4,2490.9,2.40875698]
[1748843340145,0.5287,2491.5,2491.4,2.40828449]
[1748843340387,0.38383087,2491.5,2491.0,0.8137]
[1748843340685,4.6437,2491.7,2491.2,2.4083941]
[1748843340859,0.38382991,2491.6,2491.2,2.4083941]
[1748843341062,0.38382991,2491.5,2491.1,2.40856245]
[1748843341263,2.40810426,2491.6,2491.1,2.40856245]
[1748843341459,0.38387345,2491.5,2491.1,2.40856245]
[1748843341682,9.88772911,2491.7,2491.1,3.02797512]
[1748843341990,0.38387175,2491.6,2491.2,2.40847729]
[1748843342293,0.38387175,2491.5,2491.2,2.40847729]
[1748843342589,9.88772911,2491.7,2491.2,2.40847729]
[1748843342784,9.88772911,2491.7,2491.5,2.40818783]
[1748843342785,0.38390779,2491.6,2491.5,2.40818783]
[1748843342966,0.5287,2491.7,2491.5,0.48164592]
[1748843343169,0.5387,2491.9,2491.6,2.40800168]
[1748843343471,0.38385686,2491.8,2491.6,2.40800168]
[1748843343673,0.5387,2491.9,2491.6,2.40800168]
[1748843343867,0.3839325,2491.8,2491.6,2.40800168]
[1748843344085,0.5387,2491.9,2491.5,0.48164592]
[1748843344391,0.38393339,2491.8,2491.5,2.88978851]
[1748843344692,0.5387,2491.9,2491.5,2.88978851]
[1748843345003,0.38401783,2491.8,2491.6,0.60631456]
[1748843345208,0.01,2491.9,2491.6,0.60631456]
[1748843345209,0.01,2491.9,2491.6,3.01436282]
[1748843345370,0.01,2491.9,2491.6,2.40804826]
[1748843345694,0.5387,2491.9,2491.6,2.40804826]
[1748843345994,0.5387,2491.9,2491.7,2.40798414]
[1748843347077,0.5387,2491.9,2491.6,2.40804683]
[1748843347958,0.38441075,2491.8,2491.6,2.40804683]
[1748843348194,0.5387,2491.9,2491.6,2.40804683]
[1748843348376,0.5387,2491.9,2491.7,2.40797606]
[1748843348577,0.38454305,2491.8,2491.7,2.40797606]
[1748843348779,0.01,2491.9,2491.7,2.40797606]
[1748843349505,0.38450704,2491.8,2491.7,2.40797606]
[1748843349856,0.38450704,2491.8,2491.6,2.4080586]
[1748843350054,0.01,2491.9,2491.6,2.4080586]
[1748843350360,0.38448715,2491.8,2491.5,2.40814008]
[1748843350559,0.01,2491.9,2491.5,2.40814008]
[1748843350759,0.38447508,2491.8,2491.5,2.40814008]
[1748843351008,0.38447508,2491.8,2491.2,1.9008]
[1748843351009,0.01,2491.9,2491.6,2.40805009]
[1748843351205,0.3844723,2491.8,2491.6,2.40805009]
[1748843351417,0.01,2491.9,2491.6,2.40805009]
[1748843351696,0.3844755,2491.8,2491.6,2.40805009]
[1748843351854,0.01,2491.9,2491.6,2.40805009]
[1748843352054,0.38446591,2491.8,2491.6,2.40805009]
[1748843352298,0.01,2491.9,2491.6,2.40805009]
[1748843352469,0.38446628,2491.8,2491.5,2.40814408]
[1748843352671,0.01,2491.9,2491.5,2.40814408]
[1748843352970,0.38445958,2491.8,2491.5,2.40814408]
[1748843353175,0.01,2491.9,2491.5,2.40814408]
[1748843353382,0.38445645,2491.8,2491.5,2.40814408]
[1748843353684,0.01,2491.9,2491.5,2.40814408]
[1748843354006,0.38444013,2491.8,2491.5,2.40814408]
[1748843354307,0.01,2491.9,2491.6,2.40805175]
[1748843354507,0.38443983,2491.8,2491.6,2.40805175]
[1748843354807,0.01,2491.9,2491.6,2.40805175]
[1748843354993,0.38442448,2491.8,2491.6,2.40805175]
[1748843355171,0.01,2491.9,2491.6,2.40805175]
[1748843355372,0.38442411,2491.8,2491.6,2.40805175]
[1748843355595,0.01,2491.9,2491.6,2.40805175]
[1748843355924,0.3844146,2491.8,2491.6,2.40805175]
[1748843356229,0.01,2491.9,2491.5,2.40812577]
[1748843356527,0.38440962,2491.8,2491.5,2.40812577]
[1748843356718,0.01,2491.9,2491.6,2.40808934]
[1748843356905,0.38442012,2491.8,2491.6,2.40808934]
[1748843357107,0.01,2491.9,2491.6,2.40808934]
[1748843357306,0.38441604,2491.8,2491.6,2.40808934]
[1748843357506,0.01,2491.9,2491.6,2.40808934]
[1748843357702,0.38441506,2491.8,2491.7,2.40799454]
[1748843358226,0.01,2491.9,2491.8,2.4078979]
[1748843358393,0.39437542,2491.9,2491.8,2.4078979]
[1748843358794,0.01,2491.9,2491.8,2.4078979]
[1748843358991,0.01,2491.9,2491.8,2.96894714]
[1748843359535,0.01,2491.9,2491.8,2.4078979]
[1748843359716,0.92303835,2491.9,2491.4,2.4082429]
[1748843359898,3.22032581,2491.8,2491.4,2.4082429]
[1748843360093,2.83598746,2491.8,2491.4,2.4082429]
[1748843360293,0.38438119,2491.7,2491.4,2.4082429]
[1748843360520,2.83598746,2491.8,2491.4,2.4082429]
[1748843360724,0.38439362,2491.7,2491.4,2.4082429]
[1748843360911,2.83598746,2491.8,2491.4,2.4082429]
[1748843361111,0.38439419,2491.7,2491.4,2.4082429]
[1748843361315,2.83598746,2491.8,2491.4,2.4082429]
[1748843361593,0.3843909,2491.7,2491.5,2.40818763]
[1748843361848,2.83598746,2491.8,2491.5,2.40818763]
[1748843362020,0.38440659,2491.7,2491.5,2.40818763]
[1748843362219,0.5387,2491.9,2491.6,2.40806569]
[1748843362515,0.38440465,2491.8,2491.6,2.40803511]
[1748843362716,0.5387,2491.9,2491.6,2.40803511]
[1748843362922,0.38441145,2491.8,2491.6,2.40803511]
[1748843363121,0.38441145,2491.7,2491.6,2.40803511]
[1748843364839,0.01,2491.9,2491.6,2.40803511]
[1748843364840,0.01,2491.9,2491.8,2.4078979]
[1748843365144,0.39441637,2491.9,2491.8,2.4078979]
[1748843365522,0.39441637,2491.9,2491.7,2.40796816]
[1748843365715,0.38441637,2491.8,2491.7,2.40796816]
[1748843366708,0.38441637,2491.8,2491.7,2.96885849]
[1748843366915,0.01,2491.9,2491.8,2.4078979]
[1748843367645,0.39443066,2491.9,2491.8,2.4078979]
[1748843367834,0.01,2491.9,2491.8,2.4078979]
[1748843368476,0.394421,2491.9,2491.8,2.4078979]
[1748843368946,0.394421,2491.9,2491.6,0.7929]
[1748843369138,0.01,2491.9,2491.7,2.40792909]
[1748843369677,0.38457219,2491.8,2491.3,0.7926]
[1748843369835,0.01,2491.9,2491.4,0.8390047]
[1748843370169,0.38457723,2491.8,2491.7,2.40799454]
[1748843370373,0.38457723,2491.8,2491.6,2.40803487]
[1748843370539,0.01,2491.9,2491.6,2.40803487]
[1748843370740,0.38458208,2491.8,2491.6,2.40803487]
[1748843370940,0.01,2491.9,2491.6,2.40803487]
[1748843371282,0.38458459,2491.8,2491.6,2.40803487]
[1748843371438,0.01,2491.9,2491.6,2.40803487]
[1748843371644,0.38458382,2491.8,2491.6,2.40803487]
[1748843371842,0.01,2491.9,2491.6,2.40803487]
[1748843372041,0.38458882,2491.8,2491.6,2.40803487]
[1748843372273,0.01,2491.9,2491.6,2.40803487]
[1748843372444,0.38468381,2491.8,2491.6,2.40803487]
[1748843372640,0.01,2491.9,2491.6,2.40803487]
[1748843372888,0.38482625,2491.8,2491.6,2.40803487]
[1748843373090,0.01,2491.9,2491.5,2.40818436]
[1748843373375,0.38482639,2491.8,2491.6,2.40801573]
[1748843373550,0.01,2491.9,2491.6,2.40801573]
[1748843373735,0.3848267,2491.8,2491.6,2.40801573]
[1748843373937,0.01,2491.9,2491.6,2.40801573]
[1748843374142,0.38482769,2491.8,2491.6,2.40801573]
[1748843374473,3.22083768,2491.7,2491.5,2.40818526]
[1748843374683,2.83598746,2491.7,2491.5,2.40818526]
[1748843375055,3.59515621,2491.9,2491.5,2.40818526]
[1748843375375,0.38486574,2491.8,2491.5,2.40818526]
[1748843375677,0.38486574,2491.7,2491.5,2.40818526]
[1748843375875,3.59515621,2491.9,2491.5,2.40818526]
[1748843376079,1.08609449,2491.8,2491.5,2.40818526]
[1748843376258,0.38486062,2491.7,2491.5,2.40818526]
[1748843376461,0.38486062,2491.6,2491.5,2.40818526]
[1748843376873,2.84598746,2491.9,2491.5,2.40818526]
[1748843377067,0.38484655,2491.8,2491.5,2.40818526]
[1748843377271,0.38484655,2491.7,2491.5,2.40818526]
[1748843377469,0.38484655,2491.6,2491.5,2.40818526]
[1748843378058,2.84598746,2491.9,2491.5,2.40818526]
[1748843378283,0.38484186,2491.8,2491.5,2.40818526]
[1748843378456,0.38484186,2491.7,2491.5,2.40818526]
[1748843378656,2.84598746,2491.9,2491.5,2.40818526]
[1748843378982,0.38483897,2491.8,2491.6,2.40807282]
[1748843379287,0.38483897,2491.7,2491.6,2.40807282]
[1748843379578,0.38483897,2491.7,2491.5,2.40815955]
[1748843379877,2.84598746,2491.9,2491.5,2.40815955]
[1748843380085,0.38483249,2491.8,2491.5,2.40815955]
[1748843380385,0.38483249,2491.7,2491.4,2.40824365]
[1748843380542,2.84598746,2491.9,2491.5,2.40815215]
[1748843380741,0.384827,2491.8,2491.7,2.40799454]
[1748843382647,0.38480483,2491.8,2491.7,3.19839454]
[1748843383771,0.01,2491.9,2491.8,2.4078979]
[1748843384072,0.394778,2491.9,2491.8,2.4078979]
[1748843384453,0.394778,2491.9,2491.7,0.7904]
[1748843384759,0.38479812,2491.8,2491.7,0.7904]
[1748843385172,0.38479812,2491.8,2491.5,2.40817349]
[1748843385485,0.38479812,2491.7,2491.5,2.40817349]
[1748843385699,0.01,2491.9,2491.5,2.72803084]
[1748843385874,0.38480848,2491.8,2491.5,2.72803084]
[1748843386046,0.38480848,2491.7,2491.5,2.72803084]
[1748843386245,0.01,2491.9,2491.5,2.72803084]
[1748843386551,0.38480895,2491.8,2491.5,2.72803084]
[1748843386793,0.38480895,2491.7,2491.5,2.72803084]
[1748843386998,0.01,2491.9,2491.5,2.72803084]
[1748843387303,0.91351178,2491.8,2491.4,2.40825624]
[1748843387602,0.38481178,2491.7,2491.5,2.40818635]
[1748843387803,0.5287,2491.8,2491.5,2.40818635]
[1748843388003,0.38481384,2491.7,2491.5,2.40818635]
[1748843388166,0.5287,2491.8,2491.5,2.40818635]
[1748843388364,0.38481755,2491.7,2491.5,2.40818635]
[1748843388609,0.5287,2491.8,2491.5,2.40818635]
[1748843388899,0.38482517,2491.7,2491.5,2.40818635]
[1748843389063,0.5287,2491.8,2491.5,2.40818635]
[1748843389276,0.38482518,2491.7,2491.6,2.40809118]
[1748843390919,0.01,2491.9,2491.8,2.4078979]
[1748843391069,0.39482622,2491.9,2491.8,2.4078979]
[1748843393517,0.39482622,2491.9,2491.8,3.2360979]
[1748843393518,0.39481498,2491.9,2491.8,3.2360979]
[1748843393691,0.01,2491.9,2491.8,3.2360979]
[1748843394092,0.01,2491.9,2491.8,3.80050633]
[1748843395016,0.01,2491.9,2491.8,0.56440843]
[1748843395219,0.39473975,2491.9,2491.5,2.40814064]
[1748843395426,0.01,2491.9,2491.5,2.40814064]
[1748843395914,0.38475074,2491.8,2491.5,2.40814064]
[1748843396114,2.84598746,2491.9,2491.4,3.21954029]
[1748843396422,0.38476804,2491.8,2491.5,2.408174]
[1748843396723,2.84598746,2491.9,2491.2,0.8044]
[1748843396724,3.7494555,2491.7,2491.2,0.8044]
[1748843396884,0.38476804,2491.6,2491.2,0.8044]
[1748843397107,0.38476804,2491.5,2491.2,0.8044]
[1748843397309,3.36468746,2491.7,2491.2,0.8044]
[1748843397507,2.83598746,2491.5,2491.1,2.40856962]
[1748843399641,2.40809194,2491.6,2491.1,2.40856962]
[1748843399843,0.38469376,2491.5,2491.0,3.22993259]
[1748843400042,0.38469376,2491.4,2491.1,2.40854561]
[1748843400247,2.40810458,2491.6,2491.1,2.40854561]
[1748843400443,0.3847047,2491.5,2491.1,2.40854561]
[1748843400623,0.3847047,2491.4,2491.1,2.40854561]
[1748843400825,2.40810458,2491.6,2491.1,2.40854561]
[1748843401036,0.38469941,2491.5,2491.1,2.40854561]
[1748843401239,0.38469976,2491.4,2491.1,2.40854561]
[1748843401415,2.40810458,2491.6,2491.0,3.22992305]
[1748843401616,0.38469669,2491.5,2491.0,3.90088995]
[1748843401843,0.38469669,2491.4,2491.1,2.40856071]
[1748843402036,2.19172245,2491.6,2491.1,2.40856071]
[1748843402241,0.38460735,2491.5,2491.0,3.90089385]
[1748843402449,0.38460735,2491.4,2491.0,3.90089385]
[1748843402722,2.19172245,2491.6,2491.0,3.90089385]
[1748843402921,0.3846021,2491.5,2491.0,3.90089385]
[1748843403130,0.3846021,2491.4,2491.0,3.90089385]
[1748843403450,2.19172245,2491.6,2491.0,3.90089385]
[1748843403630,0.38452436,2491.5,2491.0,3.90089385]
[1748843403823,0.38452436,2491.4,2491.0,3.90089385]
[1748843404025,10.40801417,2491.7,2491.2,0.7839]
[1748843404212,0.38451594,2491.6,2491.2,0.7839]
[1748843404411,0.38451594,2491.5,2491.2,0.7839]
[1748843404650,0.38451594,2491.4,2491.2,0.7839]
[1748843404844,2.40810644,2491.6,2491.2,0.7839]
[1748843405049,0.38436731,2491.5,2491.2,0.7839]
[1748843405352,0.38436731,2491.4,2491.2,0.7839]
[1748843405526,2.40810644,2491.6,2491.2,0.7839]
[1748843405726,0.3842208,2491.5,2491.2,0.7839]
[1748843405939,0.3842208,2491.4,2491.2,0.7839]
[1748843406139,2.40810644,2491.6,2491.2,0.7839]
[1748843406420,2.79239784,2491.5,2491.0,3.21973115]
[1748843406618,0.38420256,2491.4,2491.0,3.21973115]
[1748843406921,2.40819528,2491.5,2491.0,3.21976697]
[1748843407118,2.79242972,2491.4,2491.0,0.8111]